[Event "22nd Alekhine FIDE 2018"]
[Site "Voronezh"]
[Date "2018.06.14"]
[Round "3"]
[White "Lilov, Aleksandr"]
[Black "Kolyuzhnov, Vladislav"]
[Result "1-0"]
[ECO "A00"]
[WhiteElo "2046"]
[BlackElo "1986"]
[Annotator "NA"]
[PlyCount "91"]
[EventDate "2018.??.??"]
[EventType "swiss"]
[EventCountry "RUS"]
[SourceTitle "playchess.com"]
[Source "ChessBase"]
[SourceQuality "1"]
[TimeControl "5400+30"]

{[%evp 19,83,76,75,71,117,70,130,131,127,131,129,110,123,119,107,119,141,133,129,112,192,172,32767,180,170,186,273,300,32767,32767,32767,32767,32767,32767,32767,195,237,164,198,207,170,158,192,139,102,140,32767,32767,272,32767,32767,32767,32767,32767,32767,32767,32767,0,98,132,125,0,1495,32767,29983,29985]} 1. g3 {[%emt 0:00:00]} e5 {[%emt 0:06:49]} 2. c4 {[%emt 0:00:59]} Nf6 {[%emt 0:01:22]} 3. Bg2 {[%emt 0:02:00]} Be7 {[%emt 0:05:03]} 4. Nc3 {[%emt 0:03:55]} O-O {[%emt 0:00:58]} 5. Nf3 {[%emt 0:05:34]} Nc6 {[%emt 0:02:43]} 6. d3 {[%emt 0:01:12]} d6 {[%emt 0:04:23]} 7. O-O {[%emt 0:01:49]} Ne8 {[%emt 0:04:55] A29: English Opening: Four Knights Variation with 4 g3} (7... h6 8. Rb1 Be6 9. b4 Qd7 10. b5 Na5 11. c5 a6 12. cxd6 Bxd6 13. d4 exd4 14. Qxd4 axb5 15. Rxb5 Be7 16. Bf4 {0-1 (25) Ekdyshman,M (2362)-Vajda,L (2554) Zalakaros 2015}) 8. Ne1 {[%emt 0:13:12]} f5 {[%emt 0:01:15]} 9. f4 {[%emt 0:00:12]} g5 $146 {[%emt 0:05:45]} ({Predecessor:} 9... Nf6 10. Nc2 Be6 11. Ne3 Qd7 12. Ned5 Nd8 13. b3 c6 14. Nxe7+ Qxe7 15. Ba3 exf4 16. Rxf4 {0-1 (28) Zobel,L-Gerzenyi,K Stary Smokovec 1955}) 10. e3 {[%emt 0:14:15]} gxf4 {[%emt 0:02:09]} 11. exf4 {[%emt 0:00:06]} Nf6 {[%emt 0:00:19]} 12. Nd5 {[%emt 0:02:07]} Nd4 {[%emt 0:00:49]} 13. Nc2 {[%emt 0:11:38]} Nxd5 {[%emt 0:02:34]} 14. Bxd5+ {[%emt 0:03:04]} Ne6 {[%emt 0:01:02]} 15. Qe2 {[%emt 0:01:29]} c6 {[%emt 0:03:15]} 16. Bxe6+ $1 {[%emt 0:01:45]} Bxe6 {[%emt 0:00:05]} 17. fxe5 {[%emt 0:00:03]} d5 {[%emt 0:08:08]} 18. Bh6 {[%emt 0:08:00]} Rf7 {[%emt 0:01:21]} 19. Rad1 {[%emt 0:00:09]} d4 {[%emt 0:04:18]} (19... Qb6+ $16 20. Ne3 Qd4) 20. Ne1 {[%emt 0:01:55]} b5 {[%emt 0:04:41]} 21. b3 {[%emt 0:01:11]} bxc4 {[%emt 0:01:10]} 22. bxc4 {[%emt 0:00:22]} Rb8 {[%emt 0:00:15]} (22... f4 $142 23. Rxf4 (23. gxf4 Qd7 $18) (23. Bxf4 Rb8 $18) 23... Rxf4) 23. Ng2 {[%emt 0:00:22]} c5 {[%emt 0:08:40]} 24. Rb1 {[%emt 0:02:17]} Rb6 {[%emt 0:01:09]} 25. Qc2 {[%emt 0:03:27]} Bc8 {[%emt 0:02:52]} 26. Bd2 {[%emt 0:00:30]} Qd7 {[%emt 0:00:28]} 27. Nf4 {[%emt 0:05:10]} Rg7 {[%emt 0:00:27]} 28. Rxb6 {[%emt 0:05:32]} axb6 {[%emt 0:00:06]} 29. Rb1 {[%emt 0:00:17]} Bd8 {[%emt 0:01:18]} 30. Nd5 {[%emt 0:01:43]} Qe6 {[%emt 0:02:17]} (30... Rg6 $16 31. Qb3 Qg7) 31. Bf4 {[%emt 0:01:50]} Bb7 {[%emt 0:01:25]} 32. Qb3 {[%emt 0:00:51]} Rg6 {[%emt 0:06:39]} 33. a4 {[%emt 0:00:33]} h5 {[%emt 0:02:09]} 34. Kf2 {[%emt 0:03:42]} h4 {[%emt 0:00:37]} 35. a5 {[%emt 0:00:08]} hxg3+ {[%emt 0:00:10]} 36. hxg3 {[%emt 0:00:03]} Qf7 {[%emt 0:01:05]} 37. axb6 {[%emt 0:03:08]} Qh7 {[%emt 0:00:44]} 38. Rg1 {[%emt 0:01:21]} (38. Qb5 $16 Qh2+ 39. Kf1 Qh3+ 40. Ke2) 38... Qh2+ {[%emt 0:05:27]} (38... Bxd5 $1 $11 {bleibt in der Remisbreite.} 39. cxd5 Rxb6) 39. Rg2 {[%emt 0:00:00]} Qh1 {[%emt 0:00:35]} 40. Qb5 {[%emt 0:00:17]} (40. Qb2 $16) 40... Bc6 $2 {[%emt 0:00:55]} (40... Rxb6 $11 41. Qe8+ Kg7 42. Bh6+ (42. Qd7+ Kg6 $14) 42... Qxh6 43. Qd7+ Kh8 44. Qxd8+ Kg7 45. Qxb6 Qd2+ 46. Kg1 Qd1+ $11 47. Kh2 Qh5+ 48. Kg1 Qd1+ 49. Kf2 Qd2+ 50. Kg1 Qd1+) 41. b7 {[%emt 0:00:38]} Bxb5 {[%emt 0:04:57]} 42. b8=Q {[%emt 0:01:05]} Qd1 {[%emt 0:00:40]} 43. Qxd8+ {[%emt 0:00:14]} Kg7 {[%emt 0:00:04]} 44. Qe7+ {[%emt 0:00:11]} Kg8 {[%emt 0:00:17]} 45. Nf6+ {[%emt 0:00:42]} Rxf6 {[%emt 0:00:10]} 46. exf6 {[%emt 0:00:11]} 1-0

[Event "22nd Alekhine FIDE 2018"]
[Site "Voronezh"]
[Date "2018.06.14"]
[Round "3"]
[White "Kutyanina, Mariya"]
[Black "Kolomensky, Vladimir"]
[Result "0-1"]
[ECO "E42"]
[WhiteElo "2021"]
[BlackElo "2120"]
[Annotator "NA"]
[PlyCount "117"]
[EventDate "2018.??.??"]
[EventType "swiss"]
[EventCountry "RUS"]
[SourceTitle "playchess.com"]
[Source "ChessBase"]
[SourceQuality "1"]
[TimeControl "5400+30"]

{[%evp 21,117,-23,-20,-46,-12,-17,-18,-8,-13,-37,-34,-40,-42,-47,-44,-126,-119,-184,-173,-264,-264,-269,-258,-262,-274,-276,-258,-227,-221,-355,-352,-446,-204,-314,-292,-316,-309,-310,-254,-270,-261,-275,-240,-229,-159,-159,-159,-159,-104,-147,-150,-150,-151,-156,-128,-128,-129,-164,-174,-277,-292,-329,-238,-220,-122,-113,0,0,0,0,0,0,0,0,0,0,0,0,0,0,0,0,12846,12847,12850,12850,12851,29984,29984,29985,29985,29986,29986,29987,29987,29988,29993,29994]} 1. d4 {[%emt 0:00:00]} Nf6 {[%emt 0:00:08]} 2. c4 {[%emt 0:00:34]} e6 {[%emt 0:00:13]} 3. Nc3 {[%emt 0:00:10]} Bb4 {[%emt 0:00:58]} 4. e3 {[%emt 0:00:10]} c5 {[%emt 0:00:35]} 5. Nge2 {[%emt 0:00:10]} b6 {[%emt 0:10:59]} 6. a3 {[%emt 0:00:38]} Ba5 {[%emt 0:00:05]} 7. Rb1 {[%emt 0:11:14]} Na6 {[%emt 0:03:57]} 8. Bd2 {[%emt 0:04:43]} O-O {[%emt 0:04:06]} 9. Nf4 {[%emt 0:02:10] E42: Nimzo-Indian: Rubinstein: 4...c5 5 Ne2} cxd4 {[%emt 0:16:52]} 10. exd4 {[%emt 0:00:17]} Bxc3 {[%emt 0:00:18]} 11. Bxc3 {[%emt 0:02:19]} d5 {[%emt 0:02:10] LiveBook: 7 Games} 12. Nh5 {[%emt 0:04:27]} dxc4 $146 {[%emt 0:27:43]} ({Predecessor:} 12... Bb7 13. cxd5 Nxd5 14. Qg4 g6 15. Bd2 f5 16. Qg3 f4 17. Nxf4 Nxf4 18. Bxf4 Qxd4 {½-½ (57) Sokolov,I (2610)-Gabriel,C (2581) Bad Godesberg 1999}) 13. Bxc4 {[%emt 0:05:38]} Nc7 {[%emt 0:08:10]} 14. O-O {[%emt 0:06:57]} Bb7 {[%emt 0:04:12]} 15. Nf4 {[%emt 0:13:34]} Qd6 {[%emt 0:02:22]} 16. Qc1 {[%emt 0:02:34]} Rfd8 {[%emt 0:02:05]} 17. f3 {[%emt 0:01:18]} Rac8 {[%emt 0:00:25]} 18. Nd3 {[%emt 0:02:13]} (18. Re1 $15) 18... Ncd5 $17 {[%emt 0:04:11]} 19. Ne5 {[%emt 0:00:31]} (19. Bxd5 $17 Nxd5 20. Qd2) 19... Rc7 $19 {[%emt 0:01:08]} 20. Qe1 {[%emt 0:14:07]} (20. a4 $142) 20... Nxc3 {[%emt 0:03:02]} 21. bxc3 {[%emt 0:00:15]} Rdc8 {[%emt 0:00:13]} 22. Qe2 {[%emt 0:01:30]} Nd5 {[%emt 0:00:59]} ({But not} 22... Qxa3 23. Rfc1 $17) 23. Bxd5 {[%emt 0:07:38]} Qxd5 {[%emt 0:00:08]} ({Not} 23... exd5 24. Rfc1 $17) 24. Rfd1 {[%emt 0:04:03]} Rxc3 {[%emt 0:00:04]} 25. h4 {[%emt 0:01:56]} (25. Ra1 $142) 25... Rc2 {[%emt 0:03:22]} ({Much less strong is} 25... Rxa3 26. Qd2 $19) 26. Qe3 {[%emt 0:00:30]} Qd6 {[%emt 0:01:41]} (26... Qa2 $142 27. Qf4 f6) 27. Rd2 {[%emt 0:04:27]} (27. h5 {is a better defense.}) 27... R2c3 {[%emt 0:00:46]} 28. Rd3 {[%emt 0:02:00]} Qxa3 {[%emt 0:00:13]} 29. Rxc3 {[%emt 0:01:19]} Qxc3 {[%emt 0:00:26]} 30. Qxc3 {[%emt 0:01:33]} Rxc3 {[%emt 0:00:02] Endgame KRB-KRN} 31. Ra1 {[%emt 0:00:02]} a6 {[%emt 0:00:59]} 32. Nd7 {[%emt 0:00:43]} b5 {[%emt 0:02:05]} 33. Nc5 {[%emt 0:00:10]} Bd5 {[%emt 0:00:40]} 34. Nxa6 {[%emt 0:00:10]} g6 {[%emt 0:00:35]} (34... Rc4 $142 {aiming for ...Ra4.} 35. Rb1 Bb7) 35. Rb1 {[%emt 0:00:49]} Rb3 {[%emt 0:00:39]} 36. Rxb3 {[%emt 0:02:12]} Bxb3 $17 {[%emt 0:00:01] KB-KN} 37. Kf2 {[%emt 0:00:13]} Kf8 {[%emt 0:00:01]} 38. Ke3 {[%emt 0:00:20]} Ke7 {[%emt 0:00:01]} 39. Kd3 {[%emt 0:00:13]} Kd6 {[%emt 0:00:19]} 40. Kc3 {[%emt 0:00:55]} (40. Nb4 $142) 40... Bc4 $19 {[%emt 0:00:10]} 41. Nc5 {[%emt 0:00:09]} Bf1 {[%emt 0:02:34]} 42. g3 {[%emt 0:01:02]} Be2 {[%emt 0:00:41]} (42... Bg2 $19 43. f4 Kd5) 43. Ne4+ $17 {[%emt 0:01:14]} Kd5 {[%emt 0:00:46]} ({Better is} 43... Ke7 $17 44. f4 f5) 44. Nf6+ $11 {[%emt 0:00:33]} Kd6 {[%emt 0:00:08]} 45. Nxh7 {[%emt 0:00:11]} e5 {[%emt 0:01:04]} 46. Ng5 {[%emt 0:03:38]} f6 {[%emt 0:00:02]} 47. Ne4+ {[%emt 0:00:25]} Ke6 {[%emt 0:00:01]} 48. dxe5 {[%emt 0:00:42]} Kxe5 {[%emt 0:00:28]} 49. Nd2 {[%emt 0:00:10]} f5 {[%emt 0:00:15]} 50. Kb4 {[%emt 0:01:27]} Kd4 {[%emt 0:00:08] [#] Strongly threatening ...Ke3.} 51. g4 $1 {[%emt 0:00:23]} Bxf3 $2 {[%emt 0:02:15]} (51... Ke3 $11 52. h5 gxh5 53. gxh5 f4) 52. Nxf3+ $18 Ke3 53. gxf5 {[%emt 0:01:03]} gxf5 {[%emt 0:00:03]} 54. h5 {[%emt 0:00:32]} Kxf3 {[%emt 0:00:01] KPP-KP. White mates.} 55. h6 {[%emt 0:00:06]} f4 {[%emt 0:00:08]} 56. h7 {[%emt 0:00:04]} Kg2 {[%emt 0:00:17]} 57. h8=Q {[%emt 0:00:10]} f3 {[%emt 0:00:02]} 58. Qg7+ {[%emt 0:00:18]} Kf1 {[%emt 0:00:18]} 59. Kc3 {[%emt 0:01:03] Precision: White = 53%, Black = 62%.} 0-1

[Event "22nd Alekhine FIDE 2018"]
[Site "Voronezh"]
[Date "2018.06.14"]
[Round "3"]
[White "Lepaev, Andrey"]
[Black "Bitkinin, Lenar"]
[Result "1-0"]
[ECO "A80"]
[WhiteElo "1992"]
[BlackElo "2055"]
[Annotator "NA"]
[PlyCount "89"]
[EventDate "2018.??.??"]
[EventType "swiss"]
[EventCountry "RUS"]
[SourceTitle "playchess.com"]
[Source "ChessBase"]
[SourceQuality "1"]
[TimeControl "5400+30"]

{[%evp 26,89,-39,-106,-8,-20,0,-37,-18,-22,-24,-32,-35,-61,-74,-84,32767,32767,0,0,12,24,22,0,0,0,41,52,110,87,122,113,114,122,125,118,32767,32767,32767,141,161,32767,32767,32767,32767,32767,32767,32767,32767,32767,32767,32767,448,589,653,758,817,716,684,758,670,813,848,1119,2276,2431]} 1. d4 {[%emt 0:00:00]} f5 {[%emt 0:00:05]} 2. Nf3 {[%emt 0:00:00]} Nf6 {[%emt 0:00:05]} 3. g3 {[%emt 0:00:00]} g6 {[%emt 0:00:04]} 4. Bg2 {[%emt 0:00:00]} Bg7 {[%emt 0:00:05]} 5. O-O {[%emt 0:00:00]} O-O {[%emt 0:00:06]} 6. b3 {[%emt 0:00:00]} d6 {[%emt 0:00:19]} 7. Bb2 {[%emt 0:00:00]} Qe8 {[%emt 0:01:55]} 8. c4 {[%emt 0:00:00]} Na6 {[%emt 0:01:17]} 9. Qc2 {[%emt 0:00:09]} c5 {[%emt 0:03:24] A87: Holländische Verteidigung (Leningrader Variante)} 10. d5 {[%emt 0:04:31]} (10. Nc3 Bd7 11. Rad1 cxd4 12. Nxd4 Nc5 13. Ndb5 Qf7 14. Nd5 Bc6 15. Bxf6 Bxf6 16. e4 fxe4 17. Bxe4 Nxe4 18. Qxe4 {½-½ (32) Pezzica,G (2547)-Wunderlich,H (2638) ICCF email 2012}) 10... b5 {[%emt 0:02:10]} 11. a3 {[%emt 0:12:09]} Rb8 {[%emt 0:01:31]} 12. Nbd2 $146 {[%emt 0:05:36]} ({Vorgänger:} 12. Ra2 Nc7 13. Nbd2 bxc4 14. bxc4 Bd7 15. Rb1 Ba4 16. Qc1 Na8 17. Ng5 {0-1 (48) Mariano,E (2156)-Schacher,G (2340) Arvier 2012}) 12... bxc4 {[%emt 0:02:24]} 13. Nxc4 {[%emt 0:26:21]} Nc7 {[%emt 0:07:31]} 14. Rad1 {[%emt 0:01:38]} (14. b4 $1 $11 {keeps the balance.}) 14... Qb5 {[%emt 0:06:51]} (14... Nfxd5 $17 15. Bxg7 Kxg7) 15. Bxf6 {[%emt 0:10:08]} Bxf6 {[%emt 0:01:23]} 16. Nfd2 {[%emt 0:00:04]} a5 {[%emt 0:10:07]} 17. e4 {[%emt 0:07:58]} fxe4 {[%emt 0:04:55]} 18. a4 {[%emt 0:00:05]} Qb4 {[%emt 0:01:49]} 19. Nxe4 {[%emt 0:00:12]} Bd4 {[%emt 0:02:22]} ({Of course not} 19... Qxb3 $6 20. Qxb3 Rxb3 21. Nxf6+ Rxf6 22. Nxa5 $11) 20. Qd2 {[%emt 0:09:31]} Bg4 {[%emt 0:15:31]} 21. Rde1 {[%emt 0:06:56]} Qxd2 {[%emt 0:10:07]} 22. Nexd2 {[%emt 0:00:18]} Rf7 {[%emt 0:01:16]} 23. Nxa5 {[%emt 0:05:12]} Bc3 {[%emt 0:03:04]} 24. Nac4 {[%emt 0:00:49]} Bd4 {[%emt 0:02:08]} 25. Na5 {[%emt 0:00:31]} Rbf8 {[%emt 0:00:26]} 26. Ne4 $1 {[%emt 0:00:22]} Bf3 {[%emt 0:06:50]} (26... Bd7 $1 $11 {hält das Gleichgewicht.}) 27. Nc6 {[%emt 0:01:37]} Nxd5 {[%emt 0:00:40]} 28. Nxd4 {[%emt 0:00:35]} cxd4 {[%emt 0:00:13]} 29. Ng5 {[%emt 0:00:04]} Bxg2 {[%emt 0:00:17]} 30. Kxg2 {[%emt 0:00:08]} Rf6 {[%emt 0:01:45]} 31. Ne6 {[%emt 0:00:22]} Rb8 {[%emt 0:00:19]} 32. Nxd4 {[%emt 0:00:26]} Rb4 {[%emt 0:02:46]} 33. Nc6 {[%emt 0:00:31]} Rb7 {[%emt 0:00:34]} 34. b4 {[%emt 0:01:25]} e5 {[%emt 0:00:30]} 35. b5 {[%emt 0:00:35]} Nc3 {[%emt 0:00:12]} 36. Ra1 {[%emt 0:00:12]} e4 {[%emt 0:00:29]} 37. Ra3 {[%emt 0:01:46]} Nd5 {[%emt 0:01:09]} 38. Rd1 {[%emt 0:00:28]} Rf5 {[%emt 0:00:22]} 39. a5 {[%emt 0:01:02]} e3 {[%emt 0:00:38]} 40. fxe3 {[%emt 0:00:36]} Rbf7 {[%emt 0:03:26]} 41. Rd2 {[%emt 0:00:19]} Nc7 {[%emt 0:00:54]} 42. b6 {[%emt 0:00:41]} Na6 {[%emt 0:00:08]} 43. Rad3 {[%emt 0:01:26]} Nc5 {[%emt 0:00:54]} 44. Rd5 {[%emt 0:00:50]} Rf3 {[%emt 0:00:33] [#]} 45. Rxc5 $18 {[%emt 0:00:28]} 1-0

[Event "22nd Alekhine FIDE 2018"]
[Site "Voronezh"]
[Date "2018.06.14"]
[Round "3"]
[White "Artemov, Nikita"]
[Black "Selensky, Andrey"]
[Result "1-0"]
[ECO "B30"]
[WhiteElo "1970"]
[BlackElo "2040"]
[Annotator "NA RC"]
[PlyCount "111"]
[EventDate "2018.??.??"]
[EventType "swiss"]
[EventCountry "RUS"]
[SourceTitle "playchess.com"]
[Source "ChessBase"]
[SourceQuality "1"]
[TimeControl "5400+30"]

1. e4 {[%emt 0:01:23]} c5 {[%emt 0:00:09]} 2. Nf3 {[%emt 0:00:07]} Nc6 {[%emt 0:00:05]} 3. Bb5 {[%emt 0:00:08]} Nd4 {[%emt 0:00:24]} 4. Nxd4 {[%emt 0:00:08]} cxd4 {[%emt 0:00:04]} 5. c3 {[%emt 0:00:04]} e5 {[%emt 0:02:44] B30: Sizilianisch (Rossolimo-Variante)} (5... a6 6. Bd3 e5 7. cxd4 exd4 8. O-O Ne7 9. Bc4 Nc6 10. d3 Be7 11. f4 d6 12. Nd2 O-O 13. Nf3 {1-0 (32) Blomqvist,E (2567)-Ehlvest,J (2532) London 2016}) 6. cxd4 {[%emt 0:00:53]} Qb6 $146 {[%emt 0:00:43]} ({Vorgänger:} 6... exd4 7. O-O a6 8. Bc4 Bc5 9. Bxf7+ Kxf7 10. Qh5+ g6 11. Qxc5 Ne7 12. Qxd4 d5 13. d3 {1-0 (23) Alavkin,A (2429)-Tumakov,D (2312) Kazan 2008}) 7. Nc3 {[%emt 0:01:08]} Nf6 {[%emt 0:05:00]} 8. dxe5 {[%emt 0:02:23]} Nxe4 {[%emt 0:00:33]} 9. Qe2 {[%emt 0:01:23]} Nxc3 {[%emt 0:00:24]} 10. bxc3 {[%emt 0:00:56]} Be7 {[%emt 0:01:18]} 11. d4 {[%emt 0:00:42]} O-O {[%emt 0:00:36]} 12. O-O {[%emt 0:00:22]} d5 {[%emt 0:01:28]} 13. exd6 {[%emt 0:02:42]} Bxd6 {[%emt 0:01:07]} 14. Bd2 {[%emt 0:02:39]} Be6 {[%emt 0:04:47]} 15. a4 {[%emt 0:06:47]} a6 {[%emt 0:02:30]} 16. Bd3 {[%emt 0:00:24]} Rfe8 {[%emt 0:02:05]} 17. Rfb1 {[%emt 0:09:12]} Qd8 {[%emt 0:03:07]} 18. Qh5 {[%emt 0:05:57]} g6 {[%emt 0:00:15]} 19. Qg5 {[%emt 0:00:52]} Qc7 {[%emt 0:05:33]} 20. h3 {[%emt 0:03:28]} Be7 {[%emt 0:01:28]} ({Black should play} 20... Qc6) 21. Qf4 {[%emt 0:02:20]} Bd6 {[%emt 0:00:05]} 22. Qf3 {[%emt 0:03:02]} Rab8 {[%emt 0:05:42]} 23. a5 {[%emt 0:04:06]} f5 {[%emt 0:07:09] [#]} (23... Bc4 $142 24. Rb2 Bh2+ 25. Kh1 Bxd3 26. Qxd3 Bf4 27. Bxf4 Qxf4) 24. c4 $1 {[%emt 0:05:36]} Qf7 {[%emt 0:02:15]} 25. d5 {[%emt 0:03:54]} Bd7 {[%emt 0:00:04]} 26. Bf4 {[%emt 0:05:21]} Be5 {[%emt 0:02:00]} 27. Bxe5 {[%emt 0:03:12]} Rxe5 {[%emt 0:00:04]} 28. c5 {[%emt 0:03:55]} Rxd5 {[%emt 0:00:16]} 29. Bc4 {[%emt 0:00:13]} Bc6 {[%emt 0:00:09]} 30. Bxd5 {[%emt 0:00:06]} Bxd5 {[%emt 0:00:05]} 31. Qf4 {[%emt 0:00:43]} Rc8 {[%emt 0:01:26]} 32. Qd6 {[%emt 0:01:18]} Bc6 {[%emt 0:01:58]} 33. Re1 $18 {[%emt 0:00:56]} Qd5 {[%emt 0:00:39]} 34. Qxd5+ {[%emt 0:03:55]} Bxd5 {[%emt 0:00:04]} 35. Rad1 {[%emt 0:00:28]} Bc6 {[%emt 0:00:14]} 36. Re7 {[%emt 0:00:25]} Rf8 {[%emt 0:00:47]} 37. f4 {[%emt 0:00:34]} Rc8 {[%emt 0:00:14]} 38. Rd6 {[%emt 0:00:30]} Be4 {[%emt 0:00:21]} 39. Rdd7 {[%emt 0:00:37]} h6 {[%emt 0:00:39]} 40. Rg7+ {[%emt 0:00:38]} Kf8 {[%emt 0:00:05]} 41. Rh7 {[%emt 0:00:43]} Kg8 {[%emt 0:00:08]} 42. Rdg7+ {[%emt 0:03:10]} Kf8 {[%emt 0:00:07]} 43. Rh8+ {[%emt 0:00:35]} Kxg7 {[%emt 0:00:05]} 44. Rxc8 {[%emt 0:00:04]} g5 {[%emt 0:00:13]} 45. g3 {[%emt 0:00:07]} gxf4 {[%emt 0:00:35]} 46. gxf4 {[%emt 0:00:04]} h5 {[%emt 0:00:12]} 47. Kf2 {[%emt 0:00:44]} h4 {[%emt 0:00:06]} 48. Rd8 {[%emt 0:00:18]} Bc6 {[%emt 0:00:11]} 49. Rd1 {[%emt 0:00:31]} Kf6 {[%emt 0:00:11]} 50. Ke3 {[%emt 0:00:56]} Bg2 {[%emt 0:00:20]} 51. Kd4 {[%emt 0:00:50]} Bxh3 {[%emt 0:00:16]} 52. Rh1 {[%emt 0:00:22]} Bg2 {[%emt 0:00:13]} 53. Rxh4 {[%emt 0:00:03]} Ke6 {[%emt 0:00:52]} 54. Rh6+ {[%emt 0:00:09]} Kd7 {[%emt 0:00:14]} 55. Ke5 {[%emt 0:00:11]} Be4 {[%emt 0:00:16]} 56. Rf6 {[%emt 0:00:21]} 1-0

[Event "22nd Alekhine FIDE 2018"]
[Site "Voronezh"]
[Date "2018.06.14"]
[Round "3"]
[White "Kuzmin, Roman"]
[Black "Martyntsev, Roman"]
[Result "0-1"]
[ECO "B33"]
[WhiteElo "1963"]
[BlackElo "2035"]
[Annotator "NA RC"]
[PlyCount "64"]
[EventDate "2018.??.??"]
[EventType "swiss"]
[EventCountry "RUS"]
[SourceTitle "playchess.com"]
[Source "ChessBase"]
[SourceQuality "1"]
[TimeControl "5400+30"]

1. e4 {[%emt 0:00:00]} c5 {[%emt 0:00:31]} 2. Nf3 {[%emt 0:00:00]} Nc6 {[%emt 0:00:11]} 3. d4 {[%emt 0:00:00]} cxd4 {[%emt 0:00:06]} 4. Nxd4 {[%emt 0:00:00]} Nf6 {[%emt 0:00:07]} 5. Nc3 {[%emt 0:00:00]} e5 {[%emt 0:00:06]} 6. Ndb5 {[%emt 0:00:00]} d6 {[%emt 0:00:05]} 7. Bg5 {[%emt 0:00:00]} a6 {[%emt 0:00:05]} 8. Na3 {[%emt 0:00:00]} b5 {[%emt 0:00:06]} 9. Bxf6 {[%emt 0:00:01]} gxf6 {[%emt 0:00:06]} 10. Nd5 {[%emt 0:00:03]} f5 {[%emt 0:00:17]} 11. g3 {[%emt 0:00:04]} fxe4 {[%emt 0:05:48]} 12. Bg2 {[%emt 0:00:07]} Bg7 {[%emt 0:00:08]} 13. Bxe4 {[%emt 0:00:13]} O-O {[%emt 0:03:43] B33: Sicilian: Pelikan and Sveshnikov Variations} (13... Be6 14. Qh5 Rc8 15. Rd1 Ne7 16. Nxe7 Qxe7 17. O-O h6 18. c3 O-O 19. Nc2 f5 20. Bd5 Rc5 21. Ne3 Bxd5 22. Nxd5 Qe6 {½-½ (31) Motylev,A (2649)-Grachev,B (2649) Baku 2015}) 14. Ne3 {[%emt 0:00:20]} Qc7 {[%emt 0:10:36]} 15. Qh5 {[%emt 0:09:55]} h6 {[%emt 0:07:55]} 16. c3 {[%emt 0:03:33]} Rb8 {[%emt 0:03:19]} 17. Nac2 {[%emt 0:05:01]} Ne7 {[%emt 0:04:03]} 18. Nb4 $146 {[%emt 0:04:42]} ({Predecessor:} 18. Nd5 Nxd5 19. Bxd5 {0-1 (48) Kalmar,M (1855)-Rakhely,M (1542) Balatonlelle 2009}) 18... f5 {[%emt 0:09:46]} 19. Ned5 {[%emt 0:00:24]} Nxd5 $1 {[%emt 0:01:44]} 20. Bxd5+ {[%emt 0:00:05]} Kh8 {[%emt 0:00:49]} 21. O-O-O {[%emt 0:01:22] [#]} (21. Bg2 $11 {remains equal.}) 21... Rb6 {[%emt 0:09:14]} (21... a5 $1 $17 {[%cal Ra5b4]} 22. Nc6 Rb6 23. Nxa5 b4) 22. Bg2 {[%emt 0:05:15]} (22. Bb3 $5 {[%cal Rb4d5]}) 22... Qc5 {[%emt 0:01:54]} 23. Nd5 {[%emt 0:01:30]} Rb8 {[%emt 0:01:35]} (23... Rb7 $11) 24. Ne7 {[%emt 0:00:37]} Be6 {[%emt 0:09:33] [#]} 25. Ng6+ {[%emt 0:00:29]} ({White has to play} 25. Bd5 $1 $16 Rf6 26. Bxe6 Rxe6 27. Nxf5) 25... Kg8 $2 {[%emt 0:00:38]} (25... Kh7 $11 26. Ne7 (26. Nxf8+ Rxf8 27. Qh4 Bxa2 $11) 26... Rf6) 26. Nxf8 {[%emt 0:00:04]} Kxf8 {[%emt 0:00:14]} 27. Bh3 $2 {[%emt 0:01:24]} (27. Qg6 $18 Re8 28. Rd2) 27... e4 $1 {[%emt 0:02:25]} 28. Qe2 $2 {[%emt 0:05:39]} (28. Qg6 $11 {und Weiss muss sich keine Sorgen machen.} Re8 29. Rhe1) 28... b4 {[%emt 0:04:18]} 29. Qxa6 {[%emt 0:01:01]} Ke7 $19 {[%emt 0:01:08]} 30. Rd2 {[%emt 0:13:23]} bxc3 {[%emt 0:01:23]} 31. Rc2 {[%emt 0:02:09]} Bc4 {[%emt 0:01:05]} 32. Qa3 {[%emt 0:02:14]} cxb2+ {[%emt 0:00:25]} 0-1